lending/lending_fUSD_20240131
["ID","MTS","AMOUNT","RATE_DAILY","PERIOD"]
[313051021,1706694665418,-500.0,0.0004,5]
[313051022,1706694665428,-721.58,0.0004,5]
[313051023,1706694665438,-500.0,0.0004,5]
[313051024,1706694665449,-500.0,0.0004,5]
[313051025,1706694665459,-500.0,0.0004,5]
[313051026,1706694665469,-1042.81,0.0004,5]
[313051027,1706694665480,-614.99564028,0.0004,5]
[313051028,1706694665490,-540.17,0.0004,5]
[313051029,1706694665501,-500.0,0.0004,5]
[313051030,1706694665517,-500.0,0.0004,5]
[313051031,1706694665527,-500.0,0.0004,5]
[313051032,1706694665538,-500.0,0.0004,5]
[313051033,1706694665549,-500.0,0.0004,5]
[313051034,1706694665559,-500.0,0.0004,5]
[313051035,1706694665570,-430.60672221,0.0004,5]
[313051036,1706694665581,-500.0,0.0004,2]
[313051037,1706694665592,-577.86,0.0004,5]
[313051038,1706694665601,-500.0,0.0004,5]
[313051039,1706694665612,-576.47769173,0.0004,5]
[313051040,1706694665622,-500.0,0.0004,5]
[313051041,1706694665632,-792.53,0.0004,5]
[313051042,1706694665643,-422.68655329,0.0004,5]
[313051043,1706694665653,-500.0,0.0004,5]
[313051044,1706694665663,-583.71,0.0004,5]
[313051045,1706694665673,-500.0,0.0004,5]
[313051046,1706694665683,-648.98915247,0.0004,5]
[313051047,1706694665693,-603.42,0.0004,5]
[313051048,1706694665703,-390.87754049,0.0004,5]
[313051049,1706694665713,-500.0,0.0004,5]
[313051050,1706694665724,-244.25316433,0.0004,5]
[313051051,1706694665734,-500.0,0.0004,5]
[313051052,1706694665744,-500.0,0.0004,5]
[313051053,1706694665755,-500.0,0.0004,5]
[313051054,1706694665766,-500.0,0.0004,5]
[313051055,1706694665776,-500.0,0.0004,10]
[313051056,1706694665787,-500.0,0.0004,5]
[313051057,1706694665797,-641.84,0.0004,5]
[313051058,1706694665808,-772.86,0.0004,5]
[313051059,1706694665818,-500.0,0.0004,5]
[313051060,1706694665827,-942.86,0.0004,5]
[313051061,1706694665837,-500.0,0.0004,5]
[313051062,1706694665847,-500.0,0.0004,5]
[313051063,1706694665856,-1247.5,0.0004,5]
[313051064,1706694665867,-500.0,0.0004,5]
[313051065,1706694665877,-1000.0,0.0004,7]
[313051066,1706694665887,-500.0,0.0004,5]
[313051067,1706694665897,-500.0,0.0004,5]
[313051068,1706694665908,-430.66556835,0.0004,5]
[313051069,1706694665917,-527.31402404,0.0004,5]
[313051070,1706694665927,-500.0,0.0004,5]
[313051071,1706694665937,-265.38396022,0.0004,5]
[313051072,1706694665947,-573.31,0.0004,5]
[313051073,1706694665957,-263.48805498,0.0004,5]
[313051074,1706694665966,-886.57,0.0004,5]
[313051075,1706694665977,-500.0,0.0004,5]
[313051076,1706694665987,-500.0,0.0004,5]
[313051077,1706694665997,-802.81,0.0004,5]
[313051078,1706694666006,-150.0,0.0004,5]
[313051079,1706694666016,-494.7666735,0.0004,5]
[313051080,1706694666026,-580.02,0.0004,5]
[313051081,1706694666036,-247.04609776,0.0004,5]
[313051082,1706694666047,-500.0,0.0004,5]
[313051083,1706694666057,-500.0,0.0004,5]
[313051084,1706694666067,-500.0,0.0004,5]
[313051085,1706694666077,-769.97,0.0004,5]
[313051086,1706694666087,-991.05,0.0004,2]
[313051087,1706694666097,-829.21,0.0004,5]
[313051088,1706694666107,-176.79598584,0.0004,5]
[313051089,1706694666118,-1772.16,0.0004,5]
[313051090,1706694666128,-500.0,0.0004,5]
[313051091,1706694666138,-500.0,0.0004,5]
[313051092,1706694666148,-500.0,0.0004,5]
[313051093,1706694666159,-500.0,0.0004,5]
[313051094,1706694666170,-581.08631051,0.0004,5]
[313051095,1706694666179,-500.0,0.0004,5]
[313051096,1706694666189,-509.63613832,0.0004,5]
[313051097,1706694666200,-500.0,0.0004,5]
[313051098,1706694666210,-500.0,0.0004,5]
[313051099,1706694666220,-500.0,0.0004,5]
[313051100,1706694666230,-551.9,0.0004,5]
[313051101,1706694666240,-642.02688,0.0004,5]
[313051102,1706694666251,-576.97,0.0004,5]
[313051103,1706694666264,-500.0,0.0004,5]
[313051104,1706694666274,-500.0,0.0004,5]
[313051105,1706694666284,-154.82495918,0.0004,5]
[313051106,1706694666294,-500.0,0.0004,5]
[313051107,1706694666304,-514.7838601,0.0004,5]
[313051108,1706694666314,-332.12218114,0.0004,5]
[313051109,1706694666323,-742.58,0.0004,5]
[313051110,1706694666333,-173.0238731,0.0004,5]
[313051111,1706694666345,-500.0,0.0004,5]
[313051112,1706694666355,-500.0,0.0004,5]
[313051113,1706694666364,-440.39872891,0.0004,5]
[313051114,1706694666374,-500.0,0.0004,5]
[313051115,1706694666384,-500.0,0.0004,5]
[313051116,1706694666394,-500.0,0.0004,5]
[313051117,1706694666404,-500.0,0.0004,5]
[313051118,1706694666414,-500.0,0.0004,5]
[313051119,1706694666425,-866.57,0.0004,5]
[313051120,1706694666435,-500.0,0.0004,5]
[313051121,1706694666444,-958.12,0.0004,5]
[313051122,1706694666455,-500.0,0.0004,5]
[313051123,1706694666465,-500.0,0.0004,5]
[313051124,1706694666612,-2301.48,0.0004,5]
[313051125,1706694666641,-714.51,0.0004,5]
[313051126,1706694666651,-528.8,0.0004,5]
[313051127,1706694666661,-717.95,0.0004,5]
[313051128,1706694666670,-500.0,0.0004,5]
[313051129,1706694666680,-650.16,0.0004,5]
[313051130,1706694666690,-500.0,0.0004,5]
[313051131,1706694666700,-500.0,0.0004,5]
[313051132,1706694666710,-500.0,0.0004,5]
[313051133,1706694666721,-769.18,0.0004,5]
[313051134,1706694666730,-2602.84,0.0004,5]
[313051135,1706694666740,-500.0,0.0004,5]
[313051136,1706694666750,-500.0,0.0004,5]
[313051137,1706694666760,-331.63176106,0.0004,5]
[313051138,1706694666770,-861.22,0.0004,2]
[313051139,1706694666780,-153.19774621,0.0004,5]
[313051140,1706694666790,-1102.08,0.0004,5]
[313051141,1706694666800,-500.0,0.0004,5]
[313051142,1706694666810,-500.0,0.0004,5]
[313051143,1706694666820,-500.0,0.0004,5]
[313051144,1706694666829,-500.0,0.0004,5]
[313051145,1706694666839,-1000.0,0.0004,31]
[313051146,1706694666849,-315.52065646,0.0004,5]
[313051147,1706694666859,-500.0,0.0004,5]
[313051148,1706694666869,-849.42,0.0004,5]
[313051149,1706694666879,-2265.45,0.0004,5]
[313051150,1706694666888,-500.0,0.0004,5]
[313051151,1706694666899,-258.89359063,0.0004,5]
[313051152,1706694666908,-787.88,0.0004,5]
[313051153,1706694666918,-2673.5,0.0004,5]
[313051154,1706694666933,-500.0,0.0004,5]
[313051155,1706694666942,-630.13,0.0004,5]
[313051156,1706694666953,-748.94,0.0004,5]
[313051157,1706694666967,-1979.4,0.0004,5]
[313051158,1706694666977,-500.0,0.0004,5]
[313051159,1706694666987,-584.22,0.0004,5]
[313051160,1706694666999,-500.0,0.0004,5]
[313051161,1706694667008,-1000.0,0.0004,120]
[313051162,1706694667017,-500.0,0.0004,5]
[313051163,1706694667031,-787.6,0.0004,5]
[313051164,1706694667040,-500.0,0.0004,5]
[313051165,1706694667050,-1502.45,0.0004,5]
[313051166,1706694667059,-6992.13,0.0004,5]
[313051167,1706694667073,-500.0,0.0004,5]
[313051168,1706694667083,-500.0,0.0004,5]
[313051169,1706694667092,-843.12,0.0004,5]
[313051170,1706694667115,-500.0,0.0004,5]
[313051171,1706694667125,-500.0,0.0004,5]
[313051172,1706694667135,-500.0,0.0004,5]
[313051173,1706694667152,-1311.02,0.0004,5]
[313051174,1706694667161,-500.0,0.0004,5]
[313051175,1706694667171,-646.51478897,0.0004,5]
[313051176,1706694667181,-1333.35,0.0004,5]
[313051177,1706694667191,-978.74,0.0004,5]
[313051178,1706694667201,-500.0,0.0004,5]
[313051179,1706694667211,-559.12,0.0004,5]
[313051180,1706694667221,-1639.35,0.0004,2]
[313051181,1706694667232,-3627.45,0.0004,5]
[313051182,1706694667242,-500.0,0.0004,5]
[313051183,1706694667252,-923.07,0.0004,5]
[313051184,1706694667273,-581.32,0.0004,5]
[313051185,1706694667287,-500.0,0.0004,5]
[313051186,1706694667304,-2637.97,0.0004,5]
[313051187,1706694667314,-550.71,0.0004,5]
[313051188,1706694667323,-2102.91,0.0004,5]
[313051189,1706694667332,-3266.12,0.0004,5]
[313051190,1706694667354,-833.84,0.0004,5]
[313051191,1706694667365,-2975.79,0.0004,5]
[313051192,1706694667377,-500.0,0.0004,5]
[313051193,1706694667390,-1721.76,0.0004,5]
[313051194,1706694667399,-3438.52,0.0004,5]
[313051195,1706694667409,-500.0,0.0004,5]
[313051196,1706694667419,-500.0,0.0004,5]
[313051197,1706694667430,-1077.78,0.0004,5]
[313051198,1706694667440,-500.0,0.0004,5]
[313051199,1706694667451,-500.0,0.0004,5]
[313051200,1706694667461,-6564.97,0.0004,5]
[313051201,1706694667470,-500.0,0.0004,5]
[313051202,1706694667480,-3801.39,0.0004,5]
[313051203,1706694667491,-500.0,0.0004,5]
[313051204,1706694667500,-1008.58,0.0004,5]
[313051205,1706694667510,-196.99125227,0.0004,5]
[313051206,1706694667522,-809.55,0.0004,5]
[313051207,1706694667536,-2556.8,0.0004,5]
[313051208,1706694667546,-513.37,0.0004,5]
[313051209,1706694667555,-951.74,0.0004,5]
[313051210,1706694667565,-635.04,0.0004,5]
[313051211,1706694667575,-500.0,0.0004,5]
[313051212,1706694667586,-500.0,0.0004,5]
[313051213,1706694667596,-756.38,0.0004,5]
[313051214,1706694667606,-758.78,0.0004,5]
[313051215,1706694667616,-490.3529579,0.0004,5]
[313051216,1706694667626,-918.29,0.0004,5]
[313051217,1706694667636,-500.0,0.0004,5]
[313051218,1706694667646,-1308.87,0.0004,5]
[313051219,1706694667656,-1172.36,0.0004,5]
[313051220,1706694667666,-284.66460341,0.0004,5]
[313051221,1706694667676,-742.8,0.0004,5]
[313051222,1706694667686,-500.0,0.0004,5]
[313051223,1706694667696,-1705.38,0.0004,5]
[313051224,1706694667706,-1681.92,0.0004,5]
[313051225,1706694667717,-638.11316635,0.0004,5]
[313051226,1706694667727,-500.0,0.0004,5]
[313051227,1706694667738,-500.0,0.0004,5]
[313051228,1706694667749,-500.0,0.0004,5]
[313051229,1706694667760,-1100.12,0.0004,5]
[313051230,1706694667770,-623.78,0.0004,5]
[313051231,1706694667780,-520.11,0.0004,5]
[313051232,1706694667791,-813.21,0.0004,5]
[313051233,1706694667802,-538.14,0.0004,5]
[313051234,1706694667812,-924.1,0.0004,5]
[313051235,1706694667822,-874.95,0.0004,5]
[313051236,1706694667833,-500.0,0.0004,5]
[313051237,1706694667843,-1514.93,0.0004,5]
[313051238,1706694667853,-609.86874076,0.0004,5]
[313051239,1706694667864,-500.0,0.0004,5]
[313051240,1706694667874,-766.97,0.0004,5]
[313051241,1706694667884,-1419.76,0.0004,5]
[313051242,1706694667894,-1518.73,0.0004,5]
[313051243,1706694667904,-1142.46,0.0004,5]
[313051244,1706694667914,-778.08,0.0004,5]
[313051245,1706694667924,-1585.17,0.0004,5]
[313051246,1706694667934,-1360.69,0.0004,5]
[313051247,1706694667945,-3427.93,0.0004,5]
[313051248,1706694667955,-2181.53,0.0004,5]
[313051249,1706694667965,-1681.32,0.0004,5]
[313051250,1706694667975,-1578.68,0.0004,5]
[313051251,1706694667986,-2245.27,0.0004,5]
[313051252,1706694667996,-299.47329138,0.0004,5]
[313051253,1706694668006,-1541.05,0.0004,5]
[313051254,1706694668017,-1184.78,0.0004,5]
[313051255,1706694668028,-759.64,0.0004,5]
[313051256,1706694668037,-500.0,0.0004,5]
[313051257,1706694668046,-500.0,0.0004,20]
[313051258,1706694668056,-2411.41,0.0004,5]
[313051259,1706694668065,-500.0,0.0004,5]
[313051260,1706694668075,-721.86,0.0004,5]
[313051261,1706694668084,-500.0,0.0004,5]
[313051262,1706694668094,-4216.63,0.0004,5]
[313051263,1706694668104,-875.44,0.0004,5]
[313051264,1706694668113,-607.11,0.0004,5]
[313051265,1706694668123,-4080.07,0.0004,5]
[313051266,1706694668132,-1292.41,0.0004,5]
[313051267,1706694668141,-2126.77,0.0004,5]
[313051268,1706694668151,-225.24280253,0.0004,5]
[313051269,1706694668160,-246.86128141,0.0004,5]
[313051270,1706694668170,-678.84,0.0004,5]
[313051271,1706694668179,-837.72,0.0004,5]
[313051272,1706694668189,-500.0,0.0004,5]
[313051273,1706694668198,-500.0,0.0004,5]
[313051274,1706694668208,-937.91,0.0004,5]
[313051275,1706694668218,-500.0,0.0004,5]
[313051276,1706694668229,-623.87505219,0.0004,5]
[313051277,1706694668239,-794.23,0.0004,5]
[313051278,1706694668249,-5428.42,0.0004,5]
[313051279,1706694668261,-500.0,0.0004,5]
[313051280,1706694668271,-500.0,0.0004,5]
[313051281,1706694668284,-3250.72,0.0004,5]
[313051282,1706694668293,-1723.78,0.0004,5]
[313051283,1706694668305,-1600.13,0.0004,2]
[313051284,1706694668314,-3841.13,0.0004,5]
[313051285,1706694668324,-268.43744063,0.0004,5]
[313051286,1706694668333,-2499.59,0.0004,5]
[313051287,1706694668343,-916.73,0.0004,5]
[313051288,1706694668353,-1345.99,0.0004,5]
[313051289,1706694668362,-1935.43,0.0004,5]
[313051290,1706694668372,-1282.3,0.0004,5]
[313051291,1706694668381,-866.24,0.0004,5]
[313051292,1706694668391,-500.0,0.0004,5]
[313051293,1706694668401,-501.06,0.0004,5]
[313051294,1706694668410,-1553.81,0.0004,5]
[313051295,1706694668419,-716.93,0.0004,5]
[313051296,1706694668429,-795.16,0.0004,5]
[313051297,1706694668438,-150.0,0.0004,15]
[313051298,1706694668448,-1701.51,0.0004,5]
[313051299,1706694668457,-500.0,0.0004,5]
[313051300,1706694668466,-500.0,0.0004,5]
[313051301,1706694668475,-615.58987328,0.0004,5]
[313051302,1706694668485,-500.0,0.0004,5]
[313051303,1706694668494,-8182.09,0.0004,5]
[313051304,1706694668503,-500.0,0.0004,5]
[313051305,1706694668512,-500.0,0.0004,5]
[313051306,1706694668523,-1231.59,0.0004,5]
[313051307,1706694668533,-500.0,0.0004,5]
[313051308,1706694668543,-2488.68,0.0004,5]
[313051309,1706694668552,-500.0,0.0004,5]
[313051310,1706694668562,-500.0,0.0004,5]
[313051311,1706694668571,-500.0,0.0004,5]
[313051312,1706694668581,-500.0,0.0004,5]
[313051313,1706694668590,-500.0,0.0004,5]
[313051314,1706694668600,-2438.4,0.0004,5]
[313051315,1706694668609,-630.62,0.0004,5]
[313051316,1706694668619,-6886.74,0.0004,5]
[313051317,1706694668629,-1589.99,0.0004,5]
[313051318,1706694668639,-219.82382308,0.0004,5]
[313051319,1706694668649,-5341.94,0.0004,5]
[313051320,1706694668658,-2893.31,0.0004,5]
[313051321,1706694668668,-1171.68,0.0004,5]
[313051322,1706694668678,-500.0,0.0004,5]
[313051323,1706694668687,-1344.97,0.0004,5]
[313051324,1706694668697,-627.97,0.0004,5]
[313051325,1706694668707,-1574.66,0.0004,5]
[313051326,1706694668717,-1680.53,0.0004,5]
[313051327,1706694668727,-5421.11,0.0004,5]
[313051328,1706694668737,-671.46,0.0004,5]
[313051329,1706694668746,-500.0,0.0004,5]
[313051330,1706694668756,-1906.82,0.0004,5]
[313051331,1706694668765,-570.44,0.0004,5]
[313051332,1706694668775,-636.47,0.0004,5]
[313051333,1706694668784,-795.9,0.0004,5]
[313051334,1706694668793,-2775.51,0.0004,5]
[313051335,1706694668803,-1259.66,0.0004,5]
[313051336,1706694668812,-500.0,0.0004,5]
[313051337,1706694668822,-1151.18,0.0004,5]
[313051338,1706694668832,-500.0,0.0004,5]
[313051339,1706694668842,-1296.01,0.0004,5]
[313051340,1706694668853,-564.87,0.0004,5]
[313051341,1706694668862,-1074.73,0.0004,5]
[313051342,1706694668871,-2425.31,0.0004,5]
[313051343,1706694668882,-3009.11,0.0004,5]
[313051344,1706694668891,-500.0,0.0004,5]
[313051345,1706694668901,-500.0,0.0004,2]
[313051346,1706694668913,-3095.04,0.0004,5]
[313051347,1706694668922,-500.0,0.0004,5]
[313051348,1706694668931,-741.97,0.0004,2]
[313051349,1706694668948,-500.0,0.0004,5]
[313051350,1706694668957,-618.57,0.0004,5]
[313051351,1706694668968,-500.0,0.0004,5]
[313051352,1706694668992,-1533.89,0.0004,5]
[313051353,1706694669004,-621.35,0.0004,5]
[313051354,1706694669025,-1562.28,0.0004,5]
[313051355,1706694669038,-1131.88,0.0004,5]
[313051356,1706694669055,-500.0,0.0004,5]
[313051357,1706694669067,-1000.0,0.0004,2]
[313051358,1706694669079,-2108.04,0.0004,5]
[313051359,1706694669088,-500.0,0.0004,2]
[313051360,1706694669115,-500.0,0.0004,5]
[313051361,1706694669125,-3901.96,0.0004,5]
[313051362,1706694669136,-1224.84,0.0004,5]
[313051363,1706694669156,-1312.53,0.0004,5]
[313051364,1706694669168,-542.16,0.0004,5]
[313051365,1706694669178,-500.0,0.0004,5]
[313051366,1706694669190,-648.14662913,0.0004,2]
[313051367,1706694669202,-500.0,0.0004,5]
[313051368,1706694669213,-4429.0811608,0.00040007,2]
[313051369,1706694669223,-171585.0,0.00040034,5]
[313051370,1706694669232,-1370.16219354,0.00040069,32]
[313051371,1706694669261,-151.0131,0.00040148,12]
[313051372,1706694669273,-207.0,0.00040208,23]
[313051373,1706694669290,-3011.0,0.00040244,2]
[313051374,1706694669301,-176.76,0.00040288,2]
[313051375,1706694669310,-218.0,0.00040373,2]
[313051376,1706694669339,-1055.14668008,0.00040447,2]
[313051377,1706694669350,-602.51824447,0.00040447,2]
[313051378,1706694669362,-686.29345808,0.00040447,2]
[313051379,1706694669377,-1566.91833061,0.00040447,2]
[313051380,1706694669387,-151.0131,0.00040448,12]
[313051381,1706694669398,-189.99357005,0.00040546,3]
[313051382,1706694669408,-256.70602712,0.00040546,3]
[313051383,1706694669418,-500.0,0.00040547,5]
[313051384,1706694669428,-500.0,0.00040547,5]
[313051385,1706694669437,-500.0,0.00040547,5]
[313051386,1706694669568,-500.0,0.00040547,5]
[313051387,1706694669598,-500.0,0.00040547,5]
[313051388,1706694669612,-500.0,0.00040547,5]
[313051389,1706694669622,-500.0,0.00040547,5]
[313051390,1706694669632,-614.95,0.00040547,5]
[313051391,1706694669642,-954.59,0.00040547,5]
[313051392,1706694669653,-560.60226293,0.00040547,5]
[313051393,1706694669663,-500.0,0.00040547,5]
[313051394,1706694669673,-604.85614843,0.00040547,5]
[313051395,1706694669683,-523.05,0.00040547,5]
[313051396,1706694669698,-500.0,0.00040547,5]
[313051397,1706694669713,-708.95,0.00040547,5]
[313051398,1706694669732,-1406.6,0.00040547,5]
[313051399,1706694669752,-500.0,0.00040547,5]
[313051400,1706694669768,-162.19769863,0.00040547,5]
[313051401,1706694669782,-500.0,0.00040547,5]
[313051402,1706694669794,-500.0,0.00040547,5]
[313051403,1706694669816,-500.0,0.00040547,5]
[313051404,1706694669829,-500.0,0.00040547,5]
[313051405,1706694669839,-616.80851315,0.00040547,5]
[313051406,1706694669849,-612.53,0.00040547,5]
[313051407,1706694669859,-590.09108528,0.00040547,5]
[313051408,1706694669870,-500.0,0.00040547,5]
[313051409,1706694669881,-500.0,0.00040547,5]
[313051410,1706694669891,-500.0,0.00040547,5]
[313051411,1706694669902,-500.0,0.00040547,5]
[313051412,1706694669913,-919.19,0.00040547,5]
[313051413,1706694669924,-1099.01,0.00040547,7]
[313051414,1706694669933,-988.7,0.00040547,5]
[313051415,1706694669942,-500.0,0.00040547,5]
[313051416,1706694669951,-500.0,0.00040547,5]
[313051417,1706694669960,-500.35,0.00040547,2]
[313051418,1706694669969,-500.0,0.00040547,5]
[313051419,1706694669978,-500.0,0.00040547,5]
[313051420,1706694669988,-721.58,0.00040547,5]
[313051421,1706694669997,-500.0,0.00040547,5]
[313051422,1706694670006,-500.0,0.00040547,5]
[313051423,1706694670016,-500.0,0.00040547,5]
[313051424,1706694670026,-1042.81,0.00040547,5]
[313051425,1706694670036,-540.17,0.00040547,5]
[313051426,1706694670045,-500.0,0.00040547,5]
[313051427,1706694670055,-500.0,0.00040547,5]
[313051428,1706694670064,-251.21022646,0.00040547,5]
[313051429,1706694670074,-327.36633273,0.00040547,5]
[313051430,1706694670084,-500.0,0.00040547,5]
[313051431,1706694670094,-500.0,0.00040547,5]
[313051432,1706694670104,-500.0,0.00040547,2]
[313051433,1706694670114,-577.86,0.00040547,5]
[313051434,1706694670124,-213.31886032,0.00040547,5]
[313051435,1706694670134,-598.75048612,0.00040547,5]
[313051436,1706694670145,-792.53,0.00040547,5]
[313051437,1706694670155,-500.0,0.00040547,5]
[313051438,1706694670166,-583.71,0.00040547,5]
[313051439,1706694670176,-500.0,0.00040547,5]
[313051440,1706694670187,-603.42,0.00040547,5]
[313051441,1706694670198,-500.0,0.00040547,5]
[313051442,1706694670208,-500.0,0.00040547,5]
[313051443,1706694670220,-500.0,0.00040547,5]
[313051444,1706694670230,-500.0,0.00040547,5]
[313051445,1706694670241,-500.0,0.00040547,5]
[313051446,1706694670252,-500.0,0.00040547,10]
[313051447,1706694670262,-500.0,0.00040547,5]
[313051448,1706694670274,-641.84,0.00040547,5]
[313051449,1706694670286,-772.86,0.00040547,5]
[313051450,1706694670296,-191.61350038,0.00040547,5]
[313051451,1706694670307,-942.86,0.00040547,5]
[313051452,1706694670319,-500.0,0.00040547,5]
[313051453,1706694670328,-500.0,0.00040547,5]
[313051454,1706694670338,-1247.5,0.00040547,5]
[313051455,1706694670347,-500.0,0.00040547,5]
[313051456,1706694670357,-1000.0,0.00040547,7]
[313051457,1706694670368,-602.56492336,0.00040547,5]
[313051458,1706694670378,-500.0,0.00040547,5]
[313051459,1706694670388,-500.0,0.00040547,5]
[313051460,1706694670398,-573.31,0.00040547,5]
[313051461,1706694670408,-886.57,0.00040547,5]
[313051462,1706694670417,-620.32642731,0.00040547,5]
[313051463,1706694670427,-500.0,0.00040547,5]
[313051464,1706694670437,-802.81,0.00040547,5]
[313051465,1706694670446,-282.5326255,0.00040547,5]
[313051466,1706694670456,-580.02,0.00040547,5]
[313051467,1706694670465,-500.0,0.00040547,5]
[313051468,1706694670475,-253.01070143,0.00040547,5]
[313051469,1706694670484,-156.08782914,0.00040547,5]
[313051470,1706694670493,-769.97,0.00040547,5]
[313051471,1706694670502,-991.05,0.00040547,2]
[313051472,1706694670512,-829.21,0.00040547,5]
[313051473,1706694670524,-1772.16,0.00040547,5]
[313051474,1706694670534,-496.37993645,0.00040547,5]
[313051475,1706694670543,-500.0,0.00040547,5]
[313051476,1706694670553,-500.0,0.00040547,5]
[313051477,1706694670562,-500.0,0.00040547,5]
[313051478,1706694670572,-500.0,0.00040547,5]
[313051479,1706694670582,-500.0,0.00040547,5]
[313051480,1706694670592,-500.0,0.00040547,5]
[313051481,1706694670601,-154.71463148,0.00040547,5]
[313051482,1706694670611,-551.9,0.00040547,5]
[313051483,1706694670620,-576.97,0.00040547,5]
[313051484,1706694670630,-459.44654198,0.00040547,5]
[313051485,1706694670639,-153.99793269,0.00040547,5]
[313051486,1706694670649,-500.0,0.00040547,5]
[313051487,1706694670658,-742.58,0.00040547,5]
[313051488,1706694670668,-478.40193299,0.00040547,5]
[313051489,1706694670678,-271.88062331,0.00040547,5]
[313051490,1706694670687,-323.55866386,0.00040547,5]
[313051491,1706694670697,-500.0,0.00040547,5]
[313051492,1706694670706,-500.0,0.00040547,5]
[313051493,1706694670716,-500.0,0.00040547,5]
[313051494,1706694670726,-500.0,0.00040547,5]
[313051495,1706694670736,-866.57,0.00040547,5]
[313051496,1706694670746,-500.0,0.00040547,5]
[313051497,1706694670756,-958.12,0.00040547,5]
[313051498,1706694670766,-263.71245191,0.00040547,5]
[313051499,1706694670777,-500.0,0.00040547,5]
[313051500,1706694670786,-2301.48,0.00040547,5]
[313051501,1706694670796,-714.51,0.00040547,5]
[313051502,1706694670807,-528.8,0.00040547,5]
[313051503,1706694670817,-717.95,0.00040547,5]
[313051504,1706694670827,-500.0,0.00040547,5]
[313051505,1706694670837,-650.16,0.00040547,5]
[313051506,1706694670847,-500.0,0.00040547,5]
[313051507,1706694670857,-769.18,0.00040547,5]
[313051508,1706694670866,-2602.84,0.00040547,5]
[313051509,1706694670875,-500.0,0.00040547,5]
[313051510,1706694670885,-500.0,0.00040547,5]
[313051511,1706694670894,-500.0,0.00040547,5]
[313051512,1706694670904,-861.22,0.00040547,2]
[313051513,1706694670914,-1102.08,0.00040547,5]
[313051514,1706694670923,-500.0,0.00040547,5]
[313051515,1706694670933,-500.0,0.00040547,5]
[313051516,1706694670943,-500.0,0.00040547,5]
[313051517,1706694670952,-500.0,0.00040547,5]
[313051518,1706694670961,-1000.0,0.00040547,31]
[313051519,1706694670972,-500.0,0.00040547,5]
[313051520,1706694670982,-849.42,0.00040547,5]